Workbook

Sheet Лист1
A1: Школа | C1: Ленинская СОШ, филиал МАОУ Банниковская СОШ | F1: Утвердил: | G1: должность | H1: ИП Колмакова О.М.
A2: Типовое примерное меню приготавливаемых блюд | G2: фамилия | H2: Колмакова
A3: Возрастная категория | E3: 7-11 лет | G3: дата | H3: 22 | I3: 11 | J3: 2022
H4: день | I4: месяц | J4: год
A5: Неделя | B5: День недели | C5: Прием пищи | D5: Раздел меню | E5: Блюда | F5: Вес блюда, г | G5: Белки | H5: Жиры | I5: Углеводы | J5: Калорийность | K5: № рецептуры | L5: Цена
A6: 1 | B6: 1 | C6: Завтрак | D6: гор.блюдо
D8: гор.напиток
D9: хлеб
D10: фрукты
D13: итого | F13: =SUM(F6:F12) -> 0 | G13: =SUM(G6:G12) -> 0 | H13: 0 | I13: 0 | J13: 0 | L13: =SUM(L6:L12) -> 0
A14: =A6 -> 1 | B14: =B6 -> 1 | C14: Обед | D14: закуска | E14: Салат из свеклы с чесноком | F14: 80 | G14: 1.1 | H14: 4 | I14: 5.5 | J14: 62 | K14: № 22-204 | L14: 10
D15: 1 блюдо | E15: Суп с овощами, с крупой, с мясом | F15: 250 | G15: 5.8 | H15: 4.8 | I15: 8.3 | J15: 100 | K15: № 16/2-2011 | L15: 24.7
D16: 2 блюдо | E16: Фрикадельки из птицы | F16: 100 | G16: 10.8 | H16: 10.9 | I16: 5.4 | J16: 162.9 | K16: № 410/2013 | L16: 25
D17: гарнир | E17: Пюре картофельное | F17: 150 | G17: 3.3 | H17: 3.6 | I17: 22.3 | J17: 135 | K17: № 520/2004 | L17: 20
D18: напиток | E18: Сок | F18: 200 | G18: 0.5 | H18: 0 | I18: 340 | J18: 138 | K18: № 518/2013 | L18: 20
D19: хлеб бел. | E19: Пшеничный | F19: 60 | G19: 1.2 | H19: 0.5 | I19: 26.4 | J19: 116 | L19: 4
D20: хлеб черн. | E20: Ржаной | F20: 40 | G20: 0.9 | H20: 0.5 | I20: 15.1 | J20: 69 | L20: 4
D23: итого | F23: =SUM(F14:F22) -> 880 | G23: =SUM(G14:G22) -> 23.6 | H23: 24.3 | I23: 423 | J23: 782.9 | L23: =SUM(L14:L22) -> 107.7
A24: =A6 -> 1 | B24: =B6 -> 1 | C24: Итого за день: | F24: =F13+F23 -> 880 | G24: =G13+G23 -> 23.6 | H24: 24.3 | I24: 423 | J24: 782.9 | L24: =L13+L23 -> 107.7
A25: 1 | B25: 2 | C25: Завтрак | D25: гор.блюдо
D27: гор.напиток
D28: хлеб
D29: фрукты
D32: итого | F32: =SUM(F25:F31) -> 0 | G32: =SUM(G25:G31) -> 0 | H32: =SUM(H25:H31) -> 0 | I32: =SUM(I25:I31) -> 0 | J32: =SUM(J25:J31) -> 0 | L32: 0
A33: =A25 -> 1 | B33: =B25 -> 2 | C33: Обед | D33: закуска | E33: Винегрет | F33: 80 | G33: 1 | H33: 4 | I33: 6.7 | J33: 67 | K33: № 71/2004 | L33: 10
D34: 1 блюдо | E34: Борщ из свежей капусты с картофелем, со сметаной, с мясом | F34: 265 | G34: 4.3 | H34: 5.1 | I34: 5.5 | J34: 125 | K34: № 110-2004 | L34: 24.7
D35: 2 блюдо | E35: Гуляш из говядины | F35: 100 | G35: 11 | H35: 14.3 | I35: 5 | J35: 195 | K35: № 152/2004 | L35: 25
D36: гарнир | E36: Макаронные изделия отварные | F36: 150 | G36: 3.4 | H36: 3.1 | I36: 36.8 | J36: 189 | K36: № 516/2004 | L36: 20
D37: напиток | E37: Компот из сухофруктов | F37: 200 | G37: 0.5 | H37: 0 | I37: 15 | J37: 63 | K37: № 508/2013 | L37: 20
D38: хлеб бел. | E38: Пшеничный | F38: 60 | G38: 1.2 | H38: 0.5 | I38: 26.4 | J38: 116 | L38: 4
D39: хлеб черн. | E39: Ржаной | F39: 40 | G39: 0.9 | H39: 0.5 | I39: 15.1 | J39: 69 | L39: 4
D42: итого | F42: =SUM(F33:F41) -> 895 | G42: =SUM(G33:G41) -> 22.3 | H42: =SUM(H33:H41) -> 27.5 | I42: =SUM(I33:I41) -> 110.5 | J42: =SUM(J33:J41) -> 824 | L42: 107.7
A43: =A25 -> 1 | B43: =B25 -> 2 | C43: Итого за день: | F43: =F32+F42 -> 895 | G43: =G32+G42 -> 22.3 | H43: =H32+H42 -> 27.5 | I43: =I32+I42 -> 110.5 | J43: =J32+J42 -> 824 | L43: 107.7
A44: 1 | B44: 3 | C44: Завтрак | D44: гор.блюдо
D46: гор.напиток
D47: хлеб
D48: фрукты
D51: итого | F51: =SUM(F44:F50) -> 0 | G51: =SUM(G44:G50) -> 0 | H51: =SUM(H44:H50) -> 0 | I51: =SUM(I44:I50) -> 0 | J51: =SUM(J44:J50) -> 0 | L51: 0
A52: =A44 -> 1 | B52: =B44 -> 3 | C52: Обед | D52: закуска | E52: Салат из свеклы с зелённым горошком | F52: 80 | G52: 2 | H52: 4 | I52: 11 | J52: 89 | K52: № 58/2013 | L52: 10
D53: 1 блюдо | E53: Уха рыбацкая | F53: 300 | G53: 9.3 | H53: 7.2 | I53: 10.4 | J53: 144 | K53: № 181/1996 | L53: 24.7
D54: 2 блюдо | E54: Мясо, тушёное с картофелем | F54: 250 | G54: 12.7 | H54: 14.3 | I54: 34.7 | J54: 318 | K54: № 54/9м2020, 2021 | L54: 45
D55: гарнир
D56: напиток | E56: Сок | F56: 200 | G56: 0.3 | H56: 0 | I56: 22 | J56: 89 | K56: № 518/2013 | L56: 20
D57: хлеб бел. | E57: Пшеничный | F57: 60 | G57: 1.2 | H57: 0.5 | I57: 26.4 | J57: 116 | L57: 4
D58: хлеб черн. | E58: Ржаной | F58: 40 | G58: 0.9 | H58: 0.5 | I58: 15.1 | J58: 69 | L58: 4
D61: итого | F61: =SUM(F52:F60) -> 930 | G61: =SUM(G52:G60) -> 26.4 | H61: =SUM(H52:H60) -> 26.5 | I61: =SUM(I52:I60) -> 119.6 | J61: =SUM(J52:J60) -> 825 | L61: 107.7
A62: =A44 -> 1 | B62: =B44 -> 3 | C62: Итого за день: | F62: =F51+F61 -> 930 | G62: =G51+G61 -> 26.4 | H62: =H51+H61 -> 26.5 | I62: =I51+I61 -> 119.6 | J62: =J51+J61 -> 825 | L62: 107.7
A63: 1 | B63: 4 | C63: Завтрак | D63: гор.блюдо
D65: гор.напиток
D66: хлеб
D67: фрукты
D70: итого | F70: =SUM(F63:F69) -> 0 | G70: =SUM(G63:G69) -> 0 | H70: =SUM(H63:H69) -> 0 | I70: =SUM(I63:I69) -> 0 | J70: =SUM(J63:J69) -> 0 | L70: 0
A71: =A63 -> 1 | B71: =B63 -> 4 | C71: Обед | D71: закуска | E71: Салат из отварной моркови с огурцом | F71: 80 | G71: 0.9 | H71: 4 | I71: 3.3 | J71: 53 | K71: № 21/2004 | L71: 10
D72: 1 блюдо | E72: Щи из свежей капусты с картофелем, с мясом, со сметаной | F72: 265 | G72: 4.4 | H72: 5.9 | I72: 7.8 | J72: 102 | K72: № 142/2013 | L72: 24.7
D73: 2 блюдо | E73: Курица запечённая | F73: 90 | G73: 13.8 | H73: 13 | I73: 0 | J73: 172 | K73: № 494/2004 | L73: 25
D74: гарнир | E74: Каша гречневая | F74: 150 | G74: 4.3 | H74: 5.1 | I74: 24.3 | J74: 160 | K74: № 510/2004 | L74: 20
D75: напиток | E75: Компот из яблок | F75: 200 | G75: 0.2 | H75: 0 | I75: 16.9 | J75: 68 | K75: № 513/2013 | L75: 20
D76: хлеб бел. | E76: Пшеничный | F76: 60 | G76: 1.2 | H76: 0.5 | I76: 26.4 | J76: 116 | L76: 4
D77: хлеб черн. | E77: Ржаной | F77: 40 | G77: 0.9 | H77: 0.5 | I77: 15.1 | J77: 69 | L77: 4
D80: итого | F80: =SUM(F71:F79) -> 885 | G80: =SUM(G71:G79) -> 25.7 | H80: =SUM(H71:H79) -> 29 | I80: =SUM(I71:I79) -> 93.8 | J80: =SUM(J71:J79) -> 740 | L80: 107.7
A81: =A63 -> 1 | B81: =B63 -> 4 | C81: Итого за день: | F81: =F70+F80 -> 885 | G81: =G70+G80 -> 25.7 | H81: =H70+H80 -> 29 | I81: =I70+I80 -> 93.8 | J81: =J70+J80 -> 740 | L81: 107.7
A82: 1 | B82: 5 | C82: Завтрак | D82: гор.блюдо
D84: гор.напиток
D85: хлеб
D86: фрукты
D89: итого | F89: =SUM(F82:F88) -> 0 | G89: =SUM(G82:G88) -> 0 | H89: =SUM(H82:H88) -> 0 | I89: =SUM(I82:I88) -> 0 | J89: =SUM(J82:J88) -> 0 | L89: 0
A90: =A82 -> 1 | B90: =B82 -> 5 | C90: Обед | D90: закуска | E90: Салат витаминный | F90: 80 | G90: 0.9 | H90: 4 | I90: 4.7 | J90: 58 | K90: № 2/2013 | L90: 10
D91: 1 блюдо | E91: Рассольник Ленинградский с мясом и сметаной | F91: 265 | G91: 5 | H91: 6.3 | I91: 14.4 | J91: 134 | K91: № 129/1996 | L91: 24.7
D92: 2 блюдо | E92: Рыба запечённая | F92: 90 | G92: 13.1 | H92: 10.5 | I92: 2.8 | J92: 158 | K92: № 310/1996 | L92: 25
D93: гарнир | E93: Рис припущенный | F93: 150 | G93: 3.1 | H93: 3.6 | I93: 25.4 | J93: 148 | K93: № 512/2004 | L93: 20
D94: напиток | E94: Сок | F94: 200 | G94: 0.3 | H94: 0 | I94: 22 | J94: 89 | K94: № 518/2013 | L94: 20
D95: хлеб бел. | E95: Пшеничный | F95: 60 | G95: 1.2 | H95: 0.5 | I95: 26.4 | J95: 116 | L95: 4
D96: хлеб черн. | E96: Ржаной | F96: 40 | G96: 0.9 | H96: 0.5 | I96: 15.1 | J96: 69 | L96: 4
D99: итого | F99: =SUM(F90:F98) -> 885 | G99: =SUM(G90:G98) -> 24.5 | H99: =SUM(H90:H98) -> 25.4 | I99: =SUM(I90:I98) -> 110.8 | J99: =SUM(J90:J98) -> 772 | L99: 107.7
A100: =A82 -> 1 | B100: =B82 -> 5 | C100: Итого за день: | F100: =F89+F99 -> 885 | G100: =G89+G99 -> 24.5 | H100: =H89+H99 -> 25.4 | I100: =I89+I99 -> 110.8 | J100: =J89+J99 -> 772 | L100: 107.7
A101: 2 | B101: 1 | C101: Завтрак | D101: гор.блюдо
D103: гор.напиток
D104: хлеб
D105: фрукты
D108: итого | F108: =SUM(F101:F107) -> 0 | G108: =SUM(G101:G107) -> 0 | H108: 0 | I108: 0 | J108: 0 | L108: =SUM(L101:L107) -> 0
A109: =A101 -> 2 | B109: =B101 -> 1 | C109: Обед | D109: закуска | E109: Помидор консервированный | F109: 80 | G109: 0.5 | H109: 0.2 | I109: 3.4 | J109: 17 | K109: № 101/204 | L109: 10
D110: 1 блюдо | E110: Суп картофельный с крупой, с птицей | F110: 265 | G110: 5.7 | H110: 8.5 | I110: 16.3 | J110: 165 | K110: № 138/2004 | L110: 24.7
D111: 2 блюдо | E111: Котлета из мяса | F111: 90 | G111: 11.2 | H111: 11.3 | I111: 14.2 | J111: 203 | K111: № 451/2004 | L111: 25
D112: гарнир | E112: Овощи тушёные | F112: 150 | G112: 1.3 | H112: 9.2 | I112: 13.8 | J112: 143 | K112: № 225/2004 | L112: 20
D113: напиток | E113: Кисель | F113: 200 | G113: 0.3 | H113: 0.5 | I113: 21.5 | J113: 89 | K113: № 505/2013 | L113: 20
D114: хлеб бел. | E114: Пшеничный | F114: 60 | G114: 1.2 | H114: 0.5 | I114: 26.4 | J114: 116 | L114: 4
D115: хлеб черн. | E115: Ржаной | F115: 40 | G115: 0.9 | H115: 0.5 | I115: 15.1 | J115: 69 | L115: 4
D118: итого | F118: =SUM(F109:F117) -> 885 | G118: =SUM(G109:G117) -> 21.1 | H118: 30.7 | I118: 110.7 | J118: 802 | L118: =SUM(L109:L117) -> 107.7
A119: =A101 -> 2 | B119: =B101 -> 1 | C119: Итого за день: | F119: =F108+F118 -> 885 | G119: =G108+G118 -> 21.1 | H119: =H108+H118 -> 30.7 | I119: =I108+I118 -> 110.7 | J119: =J108+J118 -> 802 | L119: 107.7
A120: 2 | B120: 2 | C120: Завтрак | D120: гор.блюдо
D122: гор.напиток
D123: хлеб
D124: фрукты
D127: итого | F127: =SUM(F120:F126) -> 0 | G127: =SUM(G120:G126) -> 0 | H127: 0 | I127: 0 | J127: 0 | L127: =SUM(L120:L126) -> 0
A128: =A120 -> 2 | B128: =B120 -> 2 | C128: Обед | D128: закуска | E128: Овощи консервированные (огурцы) | F128: 80 | G128: 0.7 | H128: 0.1 | I128: 1.2 | J128: 9 | K128: № 101/2004 | L128: 10
D129: 1 блюдо | E129: Суп гороховый с мясом, с гренками | F129: 265 | G129: 6.5 | H129: 4.8 | I129: 31.8 | J129: 196 | K129: № 138/2004 | L129: 24.7
D130: 2 блюдо | E130: Биточки рыбные | F130: 100 | G130: 13.2 | H130: 5.1 | I130: 18.1 | J130: 171 | K130: № 345/2013 | L130: 25
D131: гарнир | E131: Пюре картофельное | F131: 150 | G131: 3.3 | H131: 3.5 | I131: 22.3 | J131: 135 | K131: № 520/2004 | L131: 20
D132: напиток | E132: Компот из сухофруктов | F132: 200 | G132: 0.5 | H132: 0 | I132: 15.2 | J132: 63 | K132: № 508/2013 | L132: 20
D133: хлеб бел. | E133: Пшеничный | F133: 60 | G133: 1.2 | H133: 0.5 | I133: 26.4 | J133: 116 | L133: 4
D134: хлеб черн. | E134: Ржаной | F134: 40 | G134: 0.9 | H134: 0.5 | I134: 15.1 | J134: 69 | L134: 4
D137: итого | F137: =SUM(F128:F136) -> 895 | G137: =SUM(G128:G136) -> 26.3 | H137: 14.5 | I137: 130.1 | J137: 759 | L137: =SUM(L128:L136) -> 107.7
A138: =A120 -> 2 | B138: =B120 -> 2 | C138: Итого за день: | F138: =F127+F137 -> 895 | G138: =G127+G137 -> 26.3 | H138: =H127+H137 -> 14.5 | I138: =I127+I137 -> 130.1 | J138: =J127+J137 -> 759 | L138: 107.7
A139: 2 | B139: 3 | C139: Завтрак | D139: гор.блюдо
D141: гор.напиток
D142: хлеб
D143: фрукты
D146: итого | F146: =SUM(F139:F145) -> 0 | G146: =SUM(G139:G145) -> 0 | H146: 0 | I146: 0 | J146: 0 | L146: =SUM(L139:L145) -> 0
A147: =A139 -> 2 | B147: =B139 -> 3 | C147: Обед | D147: закуска | E147: Салат из свеклы с соленым огурцом | F147: 80 | G147: 0.9 | H147: 4 | I147: 5.1 | J147: 60 | K147: № 53/2013 | L147: 10
D148: 1 блюдо | E148: Суп с макаронными изделиями с птицей | F148: 265 | G148: 4.5 | H148: 4.8 | I148: 16.4 | J148: 128 | K148: № 140/2004 | L148: 24.7
D149: 2 блюдо | E149: Гуляш | F149: 100 | G149: 11 | H149: 14.3 | I149: 5.5 | J149: 195 | K149: № 162/2004 | L149: 25
D150: гарнир | E150: Каша гречневая, вязкая, отварная | F150: 150 | G150: 4.3 | H150: 5.1 | I150: 24.3 | J150: 160 | K150: № 510/2004 | L150: 20
D151: напиток | E151: Сок | F151: 200 | G151: 0.3 | H151: 0 | I151: 22 | J151: 89 | K151: № 518/2013 | L151: 20
D152: хлеб бел. | E152: Пшеничный | F152: 60 | G152: 1.2 | H152: 0.5 | I152: 26.4 | J152: 116 | L152: 4
D153: хлеб черн. | E153: Ржаной | F153: 40 | G153: 0.9 | H153: 0.5 | I153: 15.1 | J153: 69 | L153: 4
D156: итого | F156: =SUM(F147:F155) -> 895 | G156: =SUM(G147:G155) -> 23.1 | H156: 29.2 | I156: 114.8 | J156: 817 | L156: =SUM(L147:L155) -> 107.7
A157: =A139 -> 2 | B157: =B139 -> 3 | C157: Итого за день: | F157: =F146+F156 -> 895 | G157: =G146+G156 -> 23.1 | H157: =H146+H156 -> 29.2 | I157: =I146+I156 -> 114.8 | J157: =J146+J156 -> 817 | L157: 107.7
A158: 2 | B158: 4 | C158: Завтрак | D158: гор.блюдо
D160: гор.напиток
D161: хлеб
D162: фрукты
D165: итого | F165: =SUM(F158:F164) -> 0 | G165: =SUM(G158:G164) -> 0 | H165: 0 | I165: 0 | J165: 0 | L165: =SUM(L158:L164) -> 0
A166: =A158 -> 2 | B166: =B158 -> 4 | C166: Обед | D166: закуска | E166: Салат из капусты белокочанной с морковью | F166: 100 | G166: 1.6 | H166: 5 | I166: 9.7 | J166: 90 | K166: № 4/2013 | L166: 10
D167: 1 блюдо | E167: Суп с рыбными фрикадельками | F167: 350 | G167: 12.9 | H167: 7.2 | I167: 26 | J167: 199 | K167: № 149/2013 | L167: 24.7
D168: 2 блюдо | E168: Жаркое из птицы | F168: 200 | G168: 17.5 | H168: 11.5 | I168: 16.2 | J168: 238 | K168: № 443/1996 | L168: 45
D169: гарнир
D170: напиток | E170: Компот из яблок | F170: 200 | G170: 0.2 | H170: 0 | I170: 16.9 | J170: 68 | K170: № 513/2013 | L170: 20
D171: хлеб бел. | E171: Пшеничный | F171: 60 | G171: 1.2 | H171: 0.5 | I171: 26.4 | J171: 116 | L171: 4
D172: хлеб черн. | E172: Ржаной | F172: 40 | G172: 0.9 | H172: 0.5 | I172: 15.1 | J172: 69 | L172: 4
D175: итого | F175: =SUM(F166:F174) -> 950 | G175: =SUM(G166:G174) -> 34.3 | H175: 24.7 | I175: 110.3 | J175: 780 | L175: =SUM(L166:L174) -> 107.7
A176: =A158 -> 2 | B176: =B158 -> 4 | C176: Итого за день: | F176: =F165+F175 -> 950 | G176: =G165+G175 -> 34.3 | H176: =H165+H175 -> 24.7 | I176: =I165+I175 -> 110.3 | J176: =J165+J175 -> 780 | L176: 107.7
A177: 2 | B177: 5 | C177: Завтрак | D177: гор.блюдо
D179: гор.напиток
D180: хлеб
D181: фрукты
D184: итого | F184: =SUM(F177:F183) -> 0 | G184: =SUM(G177:G183) -> 0 | H184: 0 | I184: 0 | J184: 0 | L184: =SUM(L177:L183) -> 0
A185: =A177 -> 2 | B185: =B177 -> 5 | C185: Обед | D185: закуска | E185: Салат Любительский | F185: 80 | G185: 2.2 | H185: 4 | I185: 4.7 | J185: 64 | K185: № 4/2006 | L185: 10
D186: 1 блюдо | E186: Рассольник домашний с птицей, со сметаной | F186: 270 | G186: 4.8 | H186: 5.1 | I186: 10.8 | J186: 108 | K186: № 132/2013 | L186: 24.7
D187: 2 блюдо | E187: Ёжики из мяса с рисом с соусом | F187: 100 | G187: 6.1 | H187: 11.7 | I187: 7.4 | J187: 159 | K187: № 390/2013 | L187: 25
D188: гарнир | E188: Макаронные издели отварные | F188: 150 | G188: 3.4 | H188: 3.1 | I188: 36.8 | J188: 189 | K188: № 516/2004 | L188: 20
D189: напиток | E189: Сок | F189: 200 | G189: 0.3 | H189: 0 | I189: 22 | J189: 89 | K189: № 518/2013 | L189: 20
D190: хлеб бел. | E190: Пшеничный | F190: 60 | G190: 1.2 | H190: 0.5 | I190: 26.4 | J190: 116 | L190: 4
D191: хлеб черн. | E191: Ржаной | F191: 40 | G191: 0.9 | H191: 0.5 | I191: 15.1 | J191: 69 | L191: 4
D194: итого | F194: =SUM(F185:F193) -> 900 | G194: =SUM(G185:G193) -> 18.9 | H194: 24.9 | I194: 123.2 | J194: 794 | L194: =SUM(L185:L193) -> 107.7
A195: =A177 -> 2 | B195: =B177 -> 5 | C195: Итого за день: | F195: =F184+F194 -> 900 | G195: =G184+G194 -> 18.9 | H195: =H184+H194 -> 24.9 | I195: =I184+I194 -> 123.2 | J195: =J184+J194 -> 794 | L195: =L184+L194 -> 107.7
A196: 3 | B196: 1 | C196: Завтрак | D196: гор.блюдо
D198: гор.напиток
D199: хлеб
D200: фрукты
D203: итого | F203: =SUM(F196:F202) -> 0 | G203: =SUM(G196:G202) -> 0 | H203: 0 | I203: 0 | J203: 0 | L203: =SUM(L196:L202) -> 0
A204: =A196 -> 3 | B204: 1 | C204: Обед | D204: закуска | E204: Салат из капусты белокочанной | F204: 80 | G204: 1.6 | H204: 4.1 | I204: 6.8 | J204: 71 | K204: № 1/2013 | L204: 10
D205: 1 блюдо | E205: Свекольник с мясными фрикадельками, со сметаной | F205: 270 | G205: 4.4 | H205: 5.9 | I205: 10.5 | J205: 113 | K205: № 34/2004 | L205: 24.7
D206: 2 блюдо | E206: Плов из птицы | F206: 240 | G206: 13.1 | H206: 12.8 | I206: 41.8 | J206: 335 | K206: № 406/2013 | L206: 45
D207: гарнир
D208: напиток | E208: Компот из сухофруктов | F208: 200 | G208: 0.5 | H208: 0 | I208: 15.2 | J208: 63 | K208: № 508/2013 | L208: 20
D209: хлеб бел. | E209: Пшеничный | F209: 60 | G209: 1.2 | H209: 0.5 | I209: 26.4 | J209: 116 | L209: 4
D210: хлеб черн. | E210: Ржаной | F210: 40 | G210: 0.9 | H210: 0.5 | I210: 15.1 | J210: 69 | L210: 4
D213: итого | F213: =SUM(F204:F212) -> 890 | G213: =SUM(G204:G212) -> 21.7 | H213: 23.8 | I213: 115.8 | J213: 767 | L213: =SUM(L204:L212) -> 107.7
A214: =A196 -> 3 | B214: =B196 -> 1 | C214: Итого за день: | F214: =F203+F213 -> 890 | G214: =G203+G213 -> 21.7 | H214: =H203+H213 -> 23.8 | I214: =I203+I213 -> 115.8 | J214: =J203+J213 -> 767 | L214: =L203+L213 -> 107.7
A215: 3 | B215: 2 | C215: Завтрак | D215: гор.блюдо
D217: гор.напиток
D218: хлеб
D219: фрукты
D222: итого | F222: =SUM(F215:F221) -> 0 | G222: =SUM(G215:G221) -> 0 | H222: 0 | I222: 0 | J222: 0 | L222: =SUM(L215:L221) -> 0
A223: 3 | B223: 2 | C223: Обед | D223: закуска | E223: Салат Степной | F223: 80 | G223: 1.4 | H223: 4 | I223: 6 | J223: 66 | K223: № 25/2004 | L223: 10
D224: 1 блюдо | E224: Суп картофельный с мясом | F224: 260 | G224: 4.5 | H224: 4.8 | I224: 15.5 | J224: 123 | K224: № 133/2004 | L224: 24.7
D225: 2 блюдо | E225: Шницель из мяса | F225: 90 | G225: 11.2 | H225: 11.3 | I225: 14.2 | J225: 203 | K225: № 451/2004 | L225: 25
D226: гарнир | E226: Каша гречневая, вязкая, отварная | F226: 150 | G226: 4.3 | H226: 5.1 | I226: 24.3 | J226: 160 | K226: № 510/2004 | L226: 20
D227: напиток | E227: Сок | F227: 200 | G227: 0.3 | H227: 0 | I227: 22 | J227: 89 | K227: № 518/2013 | L227: 20
D228: хлеб бел. | E228: Пшеничный | F228: 60 | G228: 1.2 | H228: 0.5 | I228: 26.4 | J228: 116 | L228: 4
D229: хлеб черн. | E229: Ржаной | F229: 40 | G229: 0.9 | H229: 0.5 | I229: 15.1 | J229: 69 | L229: 4
D232: итого | F232: =SUM(F223:F231) -> 880 | G232: =SUM(G223:G231) -> 23.8 | H232: 26.2 | I232: 123.5 | J232: 826 | L232: =SUM(L223:L231) -> 107.7
A233: =A215 -> 3 | B233: =B215 -> 2 | C233: Итого за день: | F233: =F222+F232 -> 880 | G233: =G222+G232 -> 23.8 | H233: =H222+H232 -> 26.2 | I233: =I222+I232 -> 123.5 | J233: =J222+J232 -> 826 | L233: =L222+L232 -> 107.7
C234: Среднее значение за период: | F234: =(F24+F43+F62+F81+F100+F119+F138+F157+F176+F195+F214+F233)/(IF(F24=0,0,1)+IF(F43=0,0,1)+IF(F62=0,0,1)+IF(F81=0,0,1)+IF(F100=0,0,1)+IF(F119=0,0,1)+IF(F138=0,0,1)+IF(F157=0,0,1)+IF(F176=0,0,1)+IF(F195=0,0,1)+IF(F214=0,0,1)+IF(F233=0,0,1)) -> 897.5 | G234: 24.30833333 | H234: 25.55833333 | I234: 140.5083333 | J234: 790.7416667 | L234: =(L24+L43+L62+L81+L100+L119+L138+L157+L176+L195+L214+L233)/(IF(L24=0,0,1)+IF(L43=0,0,1)+IF(L62=0,0,1)+IF(L81=0,0,1)+IF(L100=0,0,1)+IF(L119=0,0,1)+IF(L138=0,0,1)+IF(L157=0,0,1)+IF(L176=0,0,1)+IF(L195=0,0,1)+IF(L214=0,0,1)+IF(L233=0,0,1)) -> 107.7
